bitfinex-derivatives/quotes_SOLF0:USTF0_20250821
["timestamp","ask_amount","ask_price","bid_price","bid_amount"]
[1755796530185,3.86558429,180.6,180.53,3.11]
[1755796530382,3.86558429,180.59,180.53,6.20269815]
[1755796530574,2.96,180.62,180.51,3.09269815]
[1755796530879,2.96,180.6,180.51,3.09269815]
[1755796531084,3.8653236,180.59,180.51,3.09269815]
[1755796531385,3.8653236,180.58,180.5,5.5407]
[1755796531585,3.8653236,180.57,180.51,5.5405]
[1755796531782,2.96,180.6,180.51,5.5405]
[1755796531984,2.96,180.58,180.5,3.09269815]
[1755796532184,2.96,180.56,180.48,3.09269815]
[1755796532578,3.86482195,180.55,180.48,3.09269815]
[1755796532783,2.96,180.56,180.48,3.09269815]
[1755796532989,3.86474525,180.55,180.48,3.09269815]
[1755796533187,3.86388453,180.54,180.48,3.09269815]
[1755796533381,2.96,180.56,180.48,5.5414]
[1755796533587,3.8641269,180.55,180.48,3.09269815]
[1755796533786,3.8641269,180.54,180.48,3.09269815]
[1755796533990,2.96,180.56,180.48,8.63409815]
[1755796534283,2.96,180.6,180.51,3.09269815]
[1755796534484,3.86162811,180.59,180.51,3.09269815]
[1755796534691,3.86162811,180.58,180.51,3.09269815]
[1755796534986,2.96,180.56,180.49,3.11]
[1755796535188,2.96,180.56,180.49,6.20269815]
[1755796535988,2.96,180.56,180.49,11.74369815]
[1755796536189,2.96,180.56,180.49,6.20269815]
[1755796536386,2.96,180.6,180.51,3.09269815]
[1755796536697,3.85909036,180.59,180.51,3.09269815]
[1755796536988,3.85909036,180.58,180.51,6.20269815]
[1755796537192,2.96,180.6,180.52,5.5402]
[1755796537391,3.85835551,180.59,180.52,5.5402]
[1755796537591,3.85835551,180.58,180.51,6.20269815]
[1755796537790,2.96,180.6,180.51,6.20269815]
[1755796537990,3.8577611,180.59,180.53,3.09269815]
[1755796538185,2.96,180.6,180.53,3.09269815]
[1755796538389,3.85742263,180.59,180.53,8.63259815]
[1755796538588,2.96,180.6,180.53,3.09269815]
[1755796538783,2.96,180.64,180.54,3.11]
[1755796539093,2.96,180.64,180.57,3.11]
[1755796539094,3.85736706,180.63,180.57,3.11]
[1755796539295,3.85736706,180.62,180.58,3.11]
[1755796539593,2.96,180.68,180.59,3.09269815]
[1755796539790,3.85809605,180.67,180.59,3.09269815]
[1755796539994,3.85809605,180.66,180.6,5.5377]
[1755796540193,3.85809605,180.65,180.6,8.6477]
[1755796540390,6.81809605,180.64,180.58,5.03595147]
[1755796540687,2.96,180.64,180.57,5.5385]
[1755796541290,9.06544736,180.71,180.57,3.11]
[1755796541491,3.85647792,180.7,180.64,3.11]
[1755796541717,3.85647792,180.69,180.65,3.11]
[1755796541885,3.85647792,180.68,180.65,3.11]
[1755796542093,2.96,180.72,180.63,5.03595147]
[1755796542288,3.85674527,180.71,180.63,5.03595147]
[1755796542492,3.85674527,180.7,180.63,5.03595147]
[1755796542792,2.96,180.72,180.63,5.03595147]
[1755796543098,3.85400395,180.71,180.63,5.03595147]
[1755796543296,2.96,180.69,180.63,5.03595147]
[1755796544501,2.96,180.69,180.63,10.57265147]
[1755796544701,2.96,180.72,180.63,10.57265147]
[1755796544894,2.96,180.72,180.63,5.03595147]
[1755796544895,3.84936924,180.71,180.63,5.03595147]
[1755796545096,3.84936924,180.7,180.63,5.03595147]
[1755796545394,2.96,180.72,180.63,5.03595147]
[1755796545699,3.83594014,180.71,180.63,5.03595147]
[1755796545897,3.835752,180.7,180.63,5.03595147]
[1755796546101,2.96,180.72,180.66,0.03675456]
[1755796546293,3.83558699,180.71,180.66,0.03675456]
[1755796546498,0.03628693,180.68,180.66,0.03675456]
[1755796546697,2.99628693,180.68,180.63,5.03595147]
[1755796547004,2.96,180.74,180.61,3.11]
[1755796547200,2.96,180.72,180.62,5.5372]
[1755796547498,2.96,180.7,180.61,3.11]
[1755796547899,2.96,180.7,180.64,5.5365]
[1755796548997,2.96,180.7,180.61,3.11]
[1755796549798,2.96,180.7,180.63,5.5367]
[1755796549997,2.96,180.7,180.61,3.11]
[1755796550399,2.96,180.7,180.65,3.15145505]
[1755796550599,0.03817638,180.67,180.65,3.15145505]
[1755796550801,0.03817638,180.67,180.65,3.11]
[1755796551600,0.03817638,180.67,180.66,8.646]
[1755796552006,2.96,180.75,180.66,8.14595147]
[1755796552301,3.83161982,180.74,180.66,8.14595147]
[1755796552503,2.96,180.75,180.68,5.5353]
[1755796553500,2.93,180.73,180.7,0.03671527]
[1755796553705,11.14139883,180.81,180.7,0.03671527]
[1755796553900,2.93,180.79,180.67,2.92]
[1755796554208,3.82804889,180.78,180.74,0.03655433]
[1755796554406,3.82804889,180.77,180.74,0.03655433]
[1755796554606,2.93,180.75,180.74,0.03655433]
[1755796555206,2.93,180.74,180.63,2.92]
[1755796555508,2.93,180.72,180.63,2.92]
[1755796556308,3.82547871,180.71,180.63,2.92]
[1755796556512,2.93,180.7,180.66,5.57343036]
[1755796556806,0.03539164,180.69,180.66,5.57343036]
[1755796557514,0.03539164,180.69,180.67,5.5357]
[1755796557808,0.03539164,180.69,180.67,2.92]
[1755796558704,0.03539164,180.69,180.67,8.4556]
[1755796558906,0.03539164,180.69,180.67,2.92]
[1755796559227,0.03539164,180.69,180.66,0.03743036]
[1755796559411,2.96539164,180.69,180.66,0.03743036]
[1755796560601,2.93,180.68,180.66,0.03743036]
[1755796560910,2.93,180.67,180.66,0.03743036]
[1755796562315,2.96539164,180.69,180.66,0.03743036]
[1755796562910,2.93,180.68,180.66,0.03743036]
[1755796564819,0.03539164,180.69,180.66,0.03743036]
[1755796565016,0.03539164,180.69,180.66,2.95743036]
[1755796565215,0.03539164,180.69,180.66,0.03743036]
[1755796565520,0.03539164,180.69,180.68,2.92]
[1755796565722,0.03539164,180.69,180.67,5.5357]
[1755796565922,0.03539164,180.69,180.68,2.92]
[1755796566320,0.03539164,180.69,180.66,0.03743036]
[1755796566518,2.96539164,180.69,180.66,0.03743036]
[1755796566713,2.93,180.67,180.66,0.03743036]
[1755796567422,0.03539164,180.69,180.66,0.03743036]
[1755796567625,2.93,180.68,180.66,0.03743036]
[1755796568414,2.93,180.67,180.66,0.03743036]
[1755796568616,2.93,180.67,180.57,2.92]
[1755796568816,2.93,180.67,180.56,5.03595147]
[1755796569323,2.93,180.65,180.54,2.92]
[1755796569524,3.82481682,180.64,180.56,5.03595147]
[1755796569823,0.04127591,180.61,180.6,2.92]
[1755796570224,2.93,180.68,180.6,2.92]
[1755796570724,0.03855689,180.62,180.61,2.92]
[1755796570914,2.93,180.68,180.61,2.92]
[1755796571114,0.04209014,180.63,180.61,2.92]
[1755796571322,0.04209014,180.63,180.59,5.03595147]
[1755796571617,2.93,180.68,180.62,7.95595147]
[1755796571825,2.93,180.68,180.6,0.04166642]
[1755796572416,2.93,180.68,180.61,2.92]
[1755796573126,2.93,180.68,180.61,8.4575]
[1755796573621,2.93,180.72,180.61,2.92]
[1755796573827,3.83537687,180.71,180.62,5.537]
[1755796574020,3.83537687,180.7,180.61,2.92]
[1755796574219,2.93,180.72,180.65,0.0357951]
[1755796574425,3.83667342,180.71,180.65,0.0357951]
[1755796574619,2.93,180.69,180.65,0.0357951]
[1755796575132,2.93,180.69,180.63,5.5368]
[1755796575333,11.14139883,180.76,180.65,0.03591699]
[1755796575632,2.93,180.74,180.65,0.03591699]
[1755796575819,3.83116894,180.75,180.61,2.92]
[1755796575820,2.93,180.72,180.61,2.92]
[1755796576129,2.93,180.7,180.61,2.92]
[1755796576425,6.76116894,180.69,180.65,0.03905158]
[1755796576726,11.14139883,180.76,180.65,0.03905158]
[1755796576727,2.93,180.68,180.65,0.03905158]
[1755796576931,2.93,180.68,180.63,5.5368]
[1755796577127,2.93,180.75,180.65,0.03706766]
[1755796577329,3.83207094,180.74,180.65,0.03706766]
[1755796577632,3.83207094,180.73,180.63,5.5368]
[1755796577829,6.76207094,180.72,180.68,0.04031239]
[1755796578132,2.96877568,180.7,180.57,7.95595147]
[1755796578434,2.93,180.68,180.57,7.95595147]
[1755796578627,3.83207094,180.67,180.6,5.5378]
[1755796579333,0.03537274,180.65,180.6,5.5378]
[1755796579533,2.96537274,180.65,180.61,2.92]
[1755796579730,2.96537274,180.65,180.52,2.92]
[1755796579731,2.93,180.63,180.52,2.92]
[1755796579924,2.93,180.61,180.49,2.92]
[1755796580231,2.93,180.61,180.4,377.07595147]
[1755796580232,2.93,180.56,180.44,2.92]
[1755796580436,2.93,180.54,180.44,2.92]
[1755796580736,2.93,180.52,180.4,372.04]
[1755796580931,2.93,180.5,180.4,372.04]
[1755796581131,2.93,180.5,180.41,2.92]
[1755796581332,0.03855129,180.48,180.38,5.03595147]
[1755796581532,0.03855129,180.48,180.37,142.98]
[1755796581533,2.93,180.47,180.37,142.98]
[1755796581733,2.93,180.47,180.37,2.92]
[1755796581932,5.03595147,180.45,180.33,2.92]
[1755796582128,6.76221018,180.44,180.35,5.5455]
[1755796582328,0.03929568,180.44,180.36,2.92]
[1755796584837,0.03929568,180.44,180.4,2.88]
[1755796585237,0.03929568,180.44,180.29,517.15595147]
[1755796585238,0.03929568,180.44,180.41,5.5435]
[1755796585436,0.03929568,180.44,180.42,2.88]
[1755796585632,3.0,180.5,180.39,2.88]
[1755796585840,3.0,180.5,180.41,5.03595147]
[1755796586037,0.03973038,180.45,180.41,5.03595147]
[1755796586238,0.03973038,180.45,180.37,8.4248]
[1755796586539,0.03973038,180.45,180.37,2.88]
[1755796586730,3.0,180.46,180.37,2.88]
[1755796586932,0.03623624,180.43,180.39,5.544]
[1755796587134,0.03623624,180.43,180.4,2.88]
[1755796587334,0.03623624,180.43,180.38,5.03595147]
[1755796587537,0.03623624,180.43,180.4,2.88]
[1755796587838,3.0,180.5,180.38,5.03595147]
[1755796587839,3.0,180.5,180.41,8.4236]
[1755796588035,0.04145927,180.43,180.41,2.88]
[1755796588235,0.04145927,180.43,180.42,8.4233]
[1755796588438,3.0,180.5,180.38,5.03595147]
[1755796588635,3.04116783,180.44,180.37,2.88]
[1755796588835,3.04116783,180.44,180.37,8.4248]
[1755796589035,3.0,180.44,180.37,2.88]
[1755796589231,3.0,180.44,180.38,5.5445]
[1755796589436,3.03516865,180.42,180.33,7.91595147]
[1755796590544,0.03516865,180.42,180.37,2.88]
[1755796590842,0.03516865,180.42,180.39,2.88]
[1755796591040,3.0,180.47,180.39,2.88]
[1755796591240,0.03993857,180.42,180.39,7.91595147]
[1755796591540,3.0,180.51,180.41,2.88]
[1755796591736,3.0,180.51,180.42,5.03595147]
[1755796592038,3.0,180.55,180.48,5.5415]
[1755796592237,3.0,180.55,180.45,5.03595147]
[1755796592840,3.0,180.55,180.48,0.03935323]
[1755796597641,3.0,180.59,180.49,2.88]
[1755796598147,3.0,180.59,180.5,5.5408]
[1755796598547,3.0,180.59,180.49,8.4211]
[1755796598750,3.0,180.59,180.49,2.88]
[1755796599145,3.0,180.59,180.5,5.5409]
[1755796599347,3.0,180.59,180.49,2.88]
[1755796599745,3.0,180.59,180.51,5.5404]
[1755796600048,3.0,180.59,180.49,2.88]
[1755796600445,3.0,180.59,180.51,5.5406]
[1755796600645,3.0,180.59,180.49,2.88]
[1755796600847,3.0,180.59,180.45,5.03595147]
[1755796601047,3.0,180.58,180.45,5.03595147]
[1755796601248,3.0,180.58,180.49,2.88]
[1755796602647,3.0,180.58,180.49,8.4212]
[1755796604347,3.0,180.58,180.5,5.5408]
[1755796604558,5.03595147,180.62,180.49,2.88]
[1755796604756,6.80574024,180.61,180.49,2.88]
[1755796604949,3.80574024,180.6,180.5,5.5408]
[1755796605254,6.80574024,180.59,180.54,0.04030025]
[1755796605447,3.0,180.61,180.54,0.04030025]
[1755796605647,3.0,180.59,180.54,0.04030025]
[1755796605849,3.86287363,180.58,180.54,0.04030025]
[1755796606047,3.0,180.61,180.54,0.04030025]
[1755796606253,3.86262264,180.6,180.54,0.04030025]
[1755796606453,3.86262264,180.59,180.54,0.04030025]
[1755796606649,3.0,180.57,180.54,0.04030025]
[1755796607154,8.03595147,180.62,180.54,0.04030025]
[1755796607459,3.86432885,180.61,180.54,0.04030025]
[1755796607657,3.86432885,180.6,180.54,0.04030025]
[1755796607852,3.0,180.62,180.54,0.04030025]
[1755796608053,3.86586727,180.61,180.54,0.04030025]
[1755796608256,3.86586727,180.6,180.54,0.04030025]
[1755796608554,3.0,180.62,180.54,0.04030025]
[1755796608754,3.86699194,180.61,180.54,0.04030025]
[1755796608953,3.86699194,180.6,180.54,0.04030025]
[1755796609151,3.0,180.58,180.54,0.04030025]
[1755796609454,3.0,180.57,180.54,0.04030025]
[1755796609655,3.0,180.6,180.54,0.04030025]
[1755796609855,3.8685221,180.59,180.54,0.04030025]
[1755796610058,3.8685221,180.58,180.49,5.541]
[1755796610256,3.87013368,180.57,180.49,8.421]
[1755796610459,3.0,180.59,180.49,8.421]
[1755796610755,3.87075252,180.58,180.49,8.421]
[1755796611055,3.87075252,180.57,180.49,8.421]
[1755796611357,3.0,180.59,180.49,2.88]
[1755796611557,3.87376751,180.58,180.49,2.88]
[1755796611759,3.0,180.59,180.49,2.88]
[1755796612062,3.87360574,180.58,180.49,2.88]
[1755796612349,3.87433939,180.57,180.5,5.5409]
[1755796612546,3.0,180.59,180.5,5.5409]
[1755796612746,3.87496579,180.58,180.5,5.5409]
[1755796612951,3.87496579,180.57,180.5,5.5409]
[1755796613147,3.0,180.59,180.52,3.04]
[1755796613352,3.87537142,180.58,180.52,3.04]
[1755796613553,3.0,180.59,180.54,0.0364448]
[1755796613754,3.0,180.59,180.54,3.0764448]
[1755796614864,2.84,180.63,180.54,0.0364448]
[1755796615055,3.8767901,180.62,180.54,0.0364448]
[1755796615255,6.7167901,180.61,180.54,0.0364448]
[1755796615456,3.8767901,180.6,180.54,0.0364448]
[1755796620253,2.84,180.65,180.57,5.03595147]
[1755796620456,2.84,180.65,180.58,3.04]
[1755796620457,3.88796934,180.64,180.58,3.04]
[1755796620654,2.84,180.62,180.54,8.07595147]
[1755796620863,2.84,180.6,180.51,5.03595147]
[1755796621759,3.88807742,180.59,180.51,10.57645147]
[1755796621958,2.84,180.6,180.51,10.57645147]
[1755796622154,3.88809686,180.59,180.51,5.03595147]
[1755796622362,2.84,180.6,180.52,3.04]
[1755796622560,6.10544736,180.71,180.4,5.03595147]
[1755796622561,2.84,180.65,180.55,3.04]
[1755796622762,2.84,180.63,180.51,8.07595147]
[1755796622961,3.89100255,180.62,180.51,8.07595147]
[1755796623261,2.84,180.61,180.51,8.07595147]
[1755796623452,3.89100255,180.6,180.52,3.04]
[1755796623652,2.84,180.61,180.52,3.04]
[1755796623854,2.84,180.65,180.56,5.539]
[1755796624059,3.8931639,180.64,180.55,3.04]
[1755796624361,3.8931639,180.63,180.55,3.04]
[1755796624658,3.8931639,180.62,180.55,3.04]
[1755796624964,3.8931639,180.61,180.56,5.539]
[1755796625165,2.84,180.65,180.56,5.539]
[1755796625365,2.84,180.63,180.55,3.04]
[1755796625658,2.84,180.61,180.51,8.07595147]
[1755796625864,3.89373002,180.6,180.51,8.07595147]
[1755796626068,3.89373002,180.59,180.51,13.61655147]
[1755796626260,2.84,180.61,180.51,8.07595147]
[1755796626563,3.89335286,180.6,180.51,8.07595147]
[1755796626765,3.89335286,180.59,180.51,8.07595147]
[1755796626964,3.89324689,180.58,180.51,8.07595147]
[1755796627158,2.84,180.61,180.51,13.61645147]
[1755796627356,2.84,180.59,180.48,5.03595147]
[1755796627555,3.89304849,180.58,180.48,5.03595147]
[1755796627757,3.89304849,180.57,180.48,5.03595147]
[1755796628062,3.89304849,180.56,180.48,5.03595147]
[1755796628360,2.84,180.59,180.48,5.03595147]
[1755796628662,3.89399628,180.58,180.49,5.5409]
[1755796628861,2.84,180.59,180.49,5.5409]
[1755796628862,3.89399628,180.57,180.49,5.5409]
[1755796629056,3.89399628,180.56,180.49,5.5409]
[1755796629262,3.89608367,180.55,180.49,5.5409]
[1755796629563,2.84,180.59,180.49,5.5409]
[1755796629761,3.89591136,180.58,180.48,5.03595147]
[1755796629960,3.89591136,180.57,180.48,5.03595147]
[1755796630259,2.84,180.59,180.52,3.04]
[1755796630467,3.89608763,180.58,180.52,3.04]
[1755796630765,378.32544736,180.68,180.54,5.5394]
[1755796630766,2.84,180.63,180.54,5.5394]
[1755796631066,3.89879595,180.62,180.54,5.5394]
[1755796631367,2.84,180.6,180.52,8.58]
[1755796631558,3.89879595,180.59,180.52,8.58]
[1755796631764,3.89879595,180.59,180.52,3.04]
[1755796632665,3.89879595,180.59,180.54,5.03595147]
[1755796632965,3.89879595,180.58,180.56,3.04]
[1755796633165,2.84,180.67,180.57,5.03595147]
[1755796633363,3.89723431,180.66,180.57,5.03595147]
[1755796633670,3.89723431,180.65,180.57,5.03595147]
[1755796633863,3.89723431,180.64,180.57,5.03595147]
[1755796634170,3.89723431,180.63,180.57,5.03595147]
[1755796634367,2.84,180.67,180.57,10.57445147]
[1755796634368,3.89723431,180.62,180.57,10.57445147]
[1755796634569,2.84,180.67,180.58,3.04]
[1755796634862,3.89952039,180.66,180.58,3.04]
[1755796635062,2.84,180.67,180.58,3.04]
[1755796635458,2.84,180.67,180.58,8.5782]
[1755796635868,2.84,180.67,180.58,3.04]
[1755796636464,2.84,180.67,180.58,8.5782]
[1755796636767,2.84,180.67,180.58,3.04]
[1755796636967,2.84,180.67,180.58,8.5784]
[1755796637169,2.84,180.67,180.58,3.04]
[1755796637662,2.84,180.67,180.59,5.538]
[1755796638167,2.84,180.67,180.58,8.5784]
[1755796638359,2.84,180.67,180.58,3.04]
[1755796638963,2.84,180.67,180.56,5.03595147]
[1755796639164,2.84,180.67,180.54,3.04]
[1755796639562,5.03595147,180.65,180.54,3.04]
[1755796639768,2.84,180.64,180.5,3.04]
[1755796639964,2.84,180.61,180.5,3.04]
[1755796640267,2.84,180.61,180.41,372.38]
[1755796640464,5.03595147,180.59,180.46,3.04]
[1755796640664,140.02,180.66,180.46,3.04]
[1755796640665,2.84,180.55,180.46,3.04]
[1755796643165,2.84,180.55,180.47,5.5417]
[1755796644371,2.84,180.55,180.48,5.5414]
[1755796645174,2.84,180.55,180.47,5.5417]
[1755796645369,2.84,180.55,180.46,3.04]
[1755796646373,2.84,180.55,180.49,5.541]
[1755796646573,2.84,180.55,180.46,3.04]
[1755796646875,2.99,180.6,180.51,8.4505]
[1755796647272,2.99,180.6,180.51,2.91]
[1755796648377,2.99,180.6,180.51,8.4506]
[1755796648573,2.99,180.6,180.51,2.91]
[1755796648876,2.99,180.63,180.54,5.03595147]
[1755796649074,2.99,180.63,180.54,7.94595147]
[1755796649870,2.99,180.67,180.58,5.5382]
[1755796650074,2.99,180.67,180.55,2.91]
[1755796651373,2.99,180.65,180.51,7.94595147]
[1755796651573,2.99,180.62,180.51,2.91]
[1755796651969,2.99,180.59,180.51,2.91]
[1755796652982,2.99,180.59,180.46,2.91]
[1755796653177,2.99,180.59,180.48,5.5414]
[1755796653378,2.99,180.56,180.46,2.91]
[1755796653684,2.99,180.56,180.41,372.38]
[1755796653685,2.99,180.5,180.41,2.91]
[1755796654180,2.99,180.5,180.4,5.5439]
[1755796654383,2.99,180.5,180.36,2.91]
[1755796654583,2.99,180.5,180.39,5.5441]
[1755796654782,2.99,180.5,180.36,2.91]
[1755796655282,3.85555499,180.49,180.35,5.03595147]
[1755796655474,3.85555499,180.48,180.39,2.91]
[1755796655679,3.85555499,180.47,180.39,2.91]
[1755796655882,2.99,180.5,180.39,2.91]
[1755796656183,3.8529686,180.49,180.39,2.91]
[1755796656485,2.99,180.5,180.44,5.5426]
[1755796656777,3.85050412,180.49,180.44,8.4526]
[1755796656973,2.99,180.5,180.44,8.4526]
[1755796657177,3.85050261,180.49,180.44,8.4526]
[1755796657375,5.03595147,180.54,180.44,2.91]
[1755796657584,3.84983257,180.53,180.44,2.91]
[1755796657788,3.84983257,180.52,180.44,2.91]
[1755796658082,3.84983257,180.51,180.44,2.91]
[1755796658277,3.84983257,180.51,180.41,5.03595147]
[1755796658278,8.02595147,180.54,180.45,8.4524]
[1755796658479,3.85039654,180.53,180.45,8.4524]
[1755796658785,3.85039654,180.52,180.45,2.91]
[1755796658986,3.85039654,180.51,180.41,5.03595147]
[1755796659187,3.85039654,180.51,180.4,2.91]
[1755796659188,6.84039654,180.5,180.4,2.91]
[1755796659381,2.99,180.5,180.4,2.91]
[1755796659583,3.84992753,180.49,180.4,2.91]
[1755796659780,3.84992753,180.48,180.4,2.91]
[1755796659981,2.99,180.5,180.4,2.91]
[1755796660182,3.84995562,180.49,180.4,2.91]
[1755796660382,2.99,180.47,180.39,5.5442]
[1755796660578,2.99,180.47,180.36,2.91]
[1755796660883,3.84872452,180.46,180.36,2.91]
[1755796661081,2.99,180.47,180.38,5.5443]
[1755796661276,3.84912211,180.46,180.38,5.5443]
[1755796661480,2.99,180.47,180.38,5.5443]
[1755796661775,3.84689717,180.46,180.36,2.91]
[1755796661975,2.99,180.47,180.36,2.91]
[1755796662177,3.84875626,180.46,180.36,2.91]
[1755796662381,2.99,180.47,180.36,2.91]
[1755796663183,2.99,180.52,180.39,2.91]
[1755796663386,3.84559995,180.51,180.41,5.03595147]
[1755796663576,3.84559995,180.5,180.45,5.5422]
[1755796663776,2.99,180.52,180.45,8.4522]
[1755796664386,3.84388039,180.51,180.41,7.94595147]
[1755796664588,2.99,180.52,180.41,7.94595147]
[1755796664780,6.10544736,180.62,180.42,2.91]
[1755796664984,2.99,180.56,180.45,2.91]
[1755796665179,3.84344032,180.55,180.45,2.91]
[1755796665384,2.99,180.56,180.48,5.5415]
[1755796665583,3.8282488,180.55,180.48,5.5415]
[1755796665781,2.99,180.56,180.48,5.5415]
[1755796666179,2.99,180.56,180.48,8.4515]
[1755796666383,2.99,180.56,180.48,2.91]
[1755796666384,3.82861869,180.55,180.48,2.91]
[1755796666685,2.99,180.56,180.48,2.91]
[1755796667088,2.99,180.6,180.48,2.91]
[1755796667288,3.82875092,180.59,180.49,5.5411]
[1755796667491,3.82875092,180.58,180.49,5.5411]
[1755796667681,2.99,180.6,180.48,2.91]
[1755796667989,3.8295678,180.59,180.51,2.91]
[1755796668190,2.99,180.6,180.51,2.91]
[1755796668487,2.99,180.6,180.52,5.54]
[1755796668690,2.99,180.6,180.51,2.91]
[1755796669193,2.99,180.6,180.53,5.5399]
[1755796669391,3.83002721,180.59,180.53,5.5399]
[1755796669586,2.99,180.6,180.53,5.5399]
[1755796669787,3.83002036,180.59,180.53,5.5399]
[1755796669983,2.99,180.6,180.53,5.5399]
[1755796670188,3.83043439,180.59,180.53,5.5399]
[1755796670386,2.99,180.6,180.53,5.5399]
[1755796670592,3.83096045,180.59,180.5,5.03595147]
[1755796670791,2.99,180.64,180.54,2.91]
[1755796670989,3.83112113,180.63,180.54,2.91]
[1755796671189,3.83112113,180.62,180.54,2.91]
[1755796671389,3.83112113,180.61,180.54,2.91]
[1755796671691,3.83112113,180.6,180.54,8.4494]
[1755796671887,2.99,180.64,180.54,2.91]
[1755796672085,3.83081273,180.63,180.54,2.91]
[1755796672285,3.83081273,180.62,180.54,2.91]
[1755796672485,3.83081273,180.61,180.54,2.91]
[1755796672684,3.83081273,180.6,180.54,8.4496]
[1755796672889,2.99,180.64,180.54,8.4496]
[1755796673094,3.83079741,180.63,180.54,2.91]
[1755796673297,3.83079741,180.62,180.54,2.91]
[1755796673497,2.99,180.64,180.54,2.91]
[1755796673687,3.8310953,180.63,180.56,5.5388]
[1755796673891,2.99,180.64,180.57,2.82]
[1755796674091,2.99,180.64,180.57,8.3585]
[1755796674293,2.99,180.64,180.57,2.82]
[1755796676598,5.03595147,180.69,180.57,2.82]
[1755796676895,3.8335172,180.68,180.61,2.82]
[1755796677096,2.9,180.74,180.64,2.82]
[1755796677300,3.83470138,180.73,180.64,2.82]
[1755796677499,2.9,180.74,180.64,2.82]
[1755796677500,3.83470138,180.72,180.64,2.82]
[1755796677697,2.9,180.74,180.64,2.82]
[1755796677903,3.83296638,180.73,180.64,2.82]
[1755796678106,2.9,180.74,180.64,2.82]
[1755796678304,2.9,180.74,180.66,5.5359]
[1755796678499,2.9,180.74,180.64,2.82]
[1755796678701,2.9,180.74,180.66,5.5359]
[1755796679303,2.9,180.74,180.65,5.03595147]
[1755796679602,3.83049973,180.73,180.65,5.03595147]
[1755796679804,3.83049973,180.72,180.65,5.03595147]
[1755796680005,2.9,180.74,180.65,5.03595147]
[1755796680213,3.83051586,180.73,180.65,5.03595147]
[1755796680404,3.83051586,180.72,180.65,5.03595147]
[1755796680707,3.83051586,180.71,180.65,5.03595147]
[1755796681008,2.9,180.74,180.65,5.03595147]
[1755796681304,3.83028148,180.73,180.65,5.03595147]
[1755796681495,3.83028148,180.72,180.66,5.5357]
[1755796681698,2.9,180.74,180.66,5.5357]
[1755796681901,3.82683295,180.73,180.65,5.03595147]
[1755796682101,3.82683295,180.72,180.65,5.03595147]
[1755796682398,2.9,180.74,180.65,5.03595147]
[1755796682705,3.82645779,180.73,180.66,5.5358]
[1755796682906,3.82645779,180.72,180.66,5.5358]
[1755796683106,2.9,180.74,180.66,5.5358]
[1755796683307,3.82545072,180.73,180.65,10.57215147]
[1755796683507,2.9,180.74,180.65,10.57215147]
[1755796683808,3.82394495,180.73,180.66,5.536]
[1755796684005,2.9,180.74,180.66,5.536]
[1755796684206,3.82484131,180.73,180.66,5.536]
[1755796684404,2.9,180.74,180.66,5.536]
[1755796684711,2.9,180.74,180.67,5.5356]
[1755796684712,3.82298863,180.73,180.67,5.5356]
[1755796685008,2.9,180.74,180.65,5.03595147]
[1755796685208,3.82302082,180.73,180.65,10.57215147]
[1755796685409,2.9,180.74,180.65,10.57215147]
[1755796685709,3.82112046,180.73,180.65,10.57215147]
[1755796685913,2.9,180.74,180.66,5.5358]
[1755796686109,3.82153298,180.73,180.66,5.5358]
[1755796686302,2.9,180.74,180.66,5.5358]